fUST/lending_fUST_20240520
["ID","MTS","AMOUNT","RATE_DAILY","PERIOD"]
[327537914,1716192643956,-195.266585,0.00019178,2]
[327537915,1716192643965,-195.266582,0.00019178,2]
[327537916,1716192643974,-151.0,0.00019178,2]
[327537917,1716192643985,-153.139754,0.00019178,2]
[327537918,1716192643994,-151.0,0.00019178,2]
[327537919,1716192644003,-151.0,0.00019178,2]
[327537920,1716192644012,-151.0,0.00019178,2]
[327537921,1716192644021,-151.0,0.00019178,2]
[327537922,1716192644031,-204.2062,0.00019178,2]
[327537923,1716192644041,-430.585929,0.00019178,2]
[327537924,1716192644051,-430.585929,0.00019178,2]
[327537925,1716192644061,-430.585929,0.00019178,2]
[327537926,1716192644072,-430.585929,0.00019178,2]
[327537927,1716192644081,-430.585929,0.00019178,2]
[327537928,1716192644091,-430.585929,0.00019178,2]
[327537929,1716192644101,-430.585927,0.00019178,2]
[327537930,1716192644110,-691.38381,0.00019178,2]
[327537931,1716192644119,-691.38381,0.00019178,2]
[327537932,1716192644128,-691.38381,0.00019178,2]
[327537933,1716192644138,-691.38381,0.00019178,2]
[327537934,1716192644147,-691.38381,0.00019178,2]
[327537935,1716192644156,-691.38381,0.00019178,2]
[327537936,1716192644165,-691.383812,0.00019178,2]
[327537937,1716192644174,-151.0,0.00019178,2]
[327537938,1716192644184,-151.0,0.00019178,2]
[327537939,1716192644193,-1017.626574,0.00019178,2]
[327537940,1716192644203,-231.722509,0.00019178,2]
[327537941,1716192644212,-1017.626574,0.00019178,2]
[327537942,1716192644222,-1017.626574,0.00019178,2]
[327537943,1716192644233,-1017.626574,0.00019178,2]
[327537944,1716192644242,-1017.626574,0.00019178,2]
[327537945,1716192644251,-1017.626574,0.00019178,2]
[327537946,1716192644260,-1017.626574,0.00019178,2]
[327537947,1716192644268,-273.00488782,0.00019178,2]
[327537959,1716192646899,-2108.05589247,0.00019172,2]
[327537960,1716192646909,-11.95035089,0.00019178,2]
[327537961,1716192646957,-732.67133529,0.00019178,2]
[327537962,1716192646967,-151.0,0.00019178,2]
[327537963,1716192646976,-1017.626574,0.00019178,2]
[327537964,1716192646985,-151.0,0.00019178,2]
[327537965,1716192646994,-151.0,0.00019178,2]
[327537966,1716192647003,-1017.626574,0.00019178,2]
[327537967,1716192647012,-151.0,0.00019178,2]
[327537968,1716192647021,-151.0,0.00019178,2]
[327537969,1716192647031,-151.0,0.00019178,2]
[327537970,1716192647040,-317.75631747,0.00019178,2]
[327537971,1716192648760,273.37336231,9.9e-05,2]
[327537972,1716192656973,273.37336231,9.9e-05,2]
[327537973,1716192664878,273.37336231,9.9e-05,2]
[327537974,1716192673529,273.37336231,9.9e-05,2]
[327537975,1716192681958,273.37336231,9.9e-05,2]
[327537976,1716192690067,273.37336231,9.9e-05,2]
[327537977,1716192697971,273.37336231,9.9e-05,2]
[327537978,1716192706776,273.37336231,9.9e-05,2]
[327537979,1716192714621,273.37336231,9.9e-05,2]
[327537980,1716192722804,273.37336231,9.9e-05,2]
[327537981,1716192731847,273.37336231,9.9e-05,2]
[327537982,1716192739893,273.37336231,9.9e-05,2]
[327537983,1716192748390,273.37336231,9.9e-05,2]
[327537984,1716192757225,232.90924731,9.9e-05,2]
[327537985,1716192774180,16150.29148189,9.9e-05,2]
[327537986,1716192779165,227.21883131,0.000136,2]
[327537987,1716192788212,2770.24795858,9.9e-05,2]
[327537988,1716192819134,436.0,0.00025,120]
[327537989,1716192819161,499.14,0.00025,120]
[327537990,1716193191056,1684.33877323,0.00015,2]
[327537991,1716193629141,-173.0656716,0.00016608,2]
[327537992,1716193629166,-1684.33877323,0.00016943,2]
[327537993,1716193629192,-3307.30318641,0.00016944,2]
[327537994,1716193756324,-9561.24585473,0.00016841,2]
[327537995,1716193756345,-1684.33877323,0.00016842,2]
[327537996,1716193756365,-921.87389511,0.00016843,2]
[327537997,1716193756385,-20958.74607832,0.00016939,2]
[327537998,1716193762100,-14659.41990783,0.00016939,2]
[327537999,1716193762126,-6607.03880959,0.0001757,2]
[327538000,1716193770096,-15229.44003961,0.0001757,2]
[327538001,1716193770117,-4180.0168197,0.00017898,2]
[327538101,1716193838636,-861.11857899,0.00017569,2]
[327538103,1716193838646,-3871.73999369,0.00017569,2]
[327538174,1716193840919,-6152.90879934,0.00017569,2]
[327538175,1716193840929,-427.25130369,0.00017999,2]
[327538176,1716193840942,-1257.08746954,0.00017999,2]
[327538177,1716193840952,-896.1007993,0.00018898,2]
[327538178,1716193841056,-4146.71173116,0.00018899,2]
[327538192,1716193846889,-6305.73132249,0.00018899,2]
[327538193,1716193846903,-1849.38878517,0.000189,2]
[327538194,1716193846916,-164.94288442,0.00019176,2]
[327538195,1716193846930,-158.28666304,0.00019176,2]
[327538196,1716193846945,-154.98843811,0.00019176,2]
[327538197,1716193846957,-2111.80644308,0.00019176,2]
[327538198,1716193846973,-2304.57399171,0.00019176,2]
[327538199,1716193846990,-274.09997115,0.00019176,2]
[327538200,1716193847002,-741.28984459,0.00019176,2]
[327538201,1716193847015,-156.92939147,0.00019176,2]
[327538202,1716193847027,-177.85748747,0.00019176,2]
[327538203,1716193847042,-1083.33243758,0.00019177,2]
[327538204,1716193847054,-1283.51220106,0.00019178,3]
[327538205,1716193847065,-710.03135754,0.00019178,3]
[327538206,1716193847076,-522.839867,0.00019178,2]
[327538207,1716193847088,-522.839867,0.00019178,2]
[327538208,1716193847101,-522.839867,0.00019178,2]
[327538209,1716193847114,-522.839867,0.00019178,2]
[327538210,1716193847126,-522.839867,0.00019178,2]
[327538211,1716193847141,-522.839867,0.00019178,2]
[327538212,1716193847156,-522.839867,0.00019178,2]
[327538213,1716193847167,-522.839867,0.00019178,2]
[327538214,1716193847178,-522.839867,0.00019178,2]
[327538215,1716193847188,-522.839867,0.00019178,2]
[327538216,1716193847200,-522.839867,0.00019178,2]
[327538217,1716193847213,-522.839867,0.00019178,2]
[327538218,1716193847227,-522.839867,0.00019178,2]
[327538219,1716193847237,-522.839867,0.00019178,2]
[327538220,1716193847250,-500.0,0.00019178,2]
[327538221,1716193847262,-434.73683231,0.00019178,2]
[327538222,1716193847273,-1486.91923368,0.00019178,2]
[327538223,1716193847286,-200.0,0.00019178,2]
[327538224,1716193847296,-500.0,0.00019178,2]
[327538225,1716193847308,-500.0,0.00019178,2]
[327538226,1716193847320,-500.0,0.00019178,2]
[327538227,1716193847332,-500.0,0.00019178,2]
[327538228,1716193847344,-500.0,0.00019178,2]
[327538229,1716193847356,-1486.91923368,0.00019178,2]
[327538230,1716193847368,-500.0,0.00019178,2]
[327538231,1716193847380,-500.0,0.00019178,2]
[327538232,1716193847391,-500.0,0.00019178,2]
[327538233,1716193847403,-1486.91923368,0.00019178,2]
[327538234,1716193847415,-500.0,0.00019178,2]
[327538235,1716193847426,-500.0,0.00019178,2]
[327538236,1716193847438,-500.0,0.00019178,2]
[327538237,1716193847449,-1486.91923368,0.00019178,2]
[327538238,1716193847461,-500.0,0.00019178,2]
[327538239,1716193847473,-500.0,0.00019178,2]
[327538240,1716193847484,-500.0,0.00019178,2]
[327538241,1716193847497,-1486.91923368,0.00019178,2]
[327538242,1716193847508,-400.0,0.00019178,2]
[327538243,1716193847521,-500.0,0.00019178,2]
[327538244,1716193847533,-500.0,0.00019178,2]
[327538245,1716193847545,-1486.91923368,0.00019178,2]
[327538246,1716193847557,-500.0,0.00019178,2]
[327538247,1716193847569,-500.0,0.00019178,2]
[327538248,1716193847581,-1486.91923368,0.00019178,2]
[327538249,1716193847593,-1486.91923368,0.00019178,2]
[327538250,1716193847607,-500.0,0.00019178,2]
[327538251,1716193847620,-184.40756951,0.00019178,2]
[327538252,1716193847632,-1486.91923368,0.00019178,2]
[327538253,1716193847644,-1486.91923368,0.00019178,2]
[327538254,1716193847657,-500.0,0.00019178,2]
[327538255,1716193847669,-500.0,0.00019178,2]
[327538256,1716193847682,-1486.91923368,0.00019178,2]
[327538257,1716193847694,-500.0,0.00019178,2]
[327538258,1716193847706,-1486.91923368,0.00019178,2]
[327538259,1716193847718,-500.0,0.00019178,2]
[327538260,1716193847730,-1486.91923368,0.00019178,2]
[327538261,1716193847741,-59.13631196,0.00019178,2]
[327538265,1716193905536,10000.0,0.00016,2]
[327538266,1716193914515,305.31647888,0.00016,2]
[327538267,1716193919033,10000.0,0.00016,2]
[327538268,1716193950101,10000.0,0.00016,2]
[327538270,1716193962966,9616.2,0.00016,2]
[327538284,1716194198348,210.0,0.00025,120]
[327538287,1716194225582,188.0,0.0002,120]
[327538289,1716194228273,1550.22864388,0.0002,120]
[327538290,1716194232195,290.92609657,7e-05,120]
[327538291,1716194240691,494.56745088,0.00021,120]
[327538292,1716194241077,159.40214114,0.00024,120]
[327538319,1716194759230,-359.6844732,0.00017569,2]
[327538323,1716194858239,18134.36058031,0.00015,2]
[327538324,1716194956123,-5154.77616593,0.00017568,2]
[327538325,1716194956144,-2262.5634898,0.00017569,2]
[327538326,1716194956168,-282.79519979,0.00017569,2]
[327538327,1716194956188,-326.375897,0.00018119,2]
[327538328,1716194956210,-1332.92585678,0.000189,2]
[327538329,1716194956230,-393.80537543,0.00018946,2]
[327538330,1716194956252,-919.40759351,0.00019076,2]
[327538331,1716194956273,-228.15918588,0.00019076,2]
[327538332,1716194956293,-228.15918584,0.00019077,2]
[327538333,1716194956314,-228.15918584,0.00019077,2]
[327538334,1716194956336,-228.15918584,0.00019078,2]
[327538335,1716194956356,-228.15918584,0.00019078,2]
[327538336,1716194956376,-1165.30697307,0.00019174,2]
[327538337,1716194956396,-3167.01954613,0.00019175,7]
[327538338,1716194956416,-1262.64490708,0.00019176,2]
[327538339,1716194956437,-942.53705457,0.00019176,2]
[327538340,1716194956459,-166.26141751,0.00019176,2]
[327538341,1716194956479,-154.89657569,0.00019176,2]
[327538342,1716194956500,-239.15823767,0.00019176,2]
[327538343,1716194956519,-395.327693,0.00019176,2]
[327538344,1716194956540,-449.90281096,0.00019176,2]
[327538345,1716194956561,-2400.65057528,0.00019176,2]
[327538346,1716194956580,-155.33504604,0.00019176,2]
[327538347,1716194956601,-9209.2887694,0.00019176,2]
[327538348,1716194956621,-194.39143777,0.00019176,2]
[327538349,1716194956641,-43.29030766,0.00019176,2]
[327538350,1716194960130,-173.25833644,0.00019176,2]
[327538351,1716194960151,-339.04179012,0.00019176,2]
[327538352,1716194960177,-2194.51997253,0.00019176,2]
[327538353,1716194960198,-3402.54337667,0.00019176,2]
[327538354,1716194960222,-312.67295473,0.00019176,2]
[327538355,1716194960242,-512.02017124,0.00019176,2]
[327538356,1716194960265,-155.21473538,0.00019176,2]
[327538357,1716194960285,-236.30330218,0.00019176,2]
[327538358,1716194960306,-218.17340369,0.00019176,2]
[327538359,1716194960328,-160.61948739,0.00019176,2]
[327538360,1716194960349,-275.38078496,0.00019176,2]
[327538361,1716194960370,-884.816818,0.00019176,2]
[327538362,1716194960390,-897.56846226,0.00019177,2]
[327538363,1716194960411,-3854.47104779,0.00019177,2]
[327538364,1716194960434,-358.09636848,0.00019178,3]
[327538365,1716194962087,-270.86766566,0.00019178,3]
[327538559,1716195045874,-888.61723785,0.000189,2]
[327538560,1716195045884,-327.27408345,0.00019178,3]
[327538561,1716195045893,-355.01567877,0.00019178,3]
[327538562,1716195045903,-440.86368804,0.00019178,2]
[327538563,1716195045914,-1486.91923368,0.00019178,2]
[327538564,1716195045923,-500.0,0.00019178,2]
[327538565,1716195045933,-1486.91923368,0.00019178,2]
[327538566,1716195045943,-500.0,0.00019178,2]
[327538567,1716195045953,-1486.91923368,0.00019178,2]
[327538568,1716195045963,-500.0,0.00019178,2]
[327538569,1716195045972,-500.0,0.00019178,2]
[327538570,1716195045982,-500.0,0.00019178,2]
[327538571,1716195045991,-500.0,0.00019178,2]
[327538572,1716195046000,-500.0,0.00019178,2]
[327538573,1716195046009,-500.0,0.00019178,2]
[327538574,1716195046019,-1486.91923368,0.00019178,2]
[327538575,1716195046028,-500.0,0.00019178,2]
[327538576,1716195046037,-500.0,0.00019178,2]
[327538577,1716195046046,-500.0,0.00019178,2]
[327538578,1716195046055,-500.0,0.00019178,2]
[327538579,1716195046065,-1486.91923368,0.00019178,2]
[327538580,1716195046074,-500.0,0.00019178,2]
[327538581,1716195046084,-1486.91923368,0.00019178,2]
[327538582,1716195046093,-500.0,0.00019178,2]
[327538583,1716195046103,-1486.91923368,0.00019178,2]
[327538584,1716195046112,-500.0,0.00019178,2]
[327538585,1716195046121,-1486.91923368,0.00019178,2]
[327538586,1716195046131,-500.0,0.00019178,2]
[327538587,1716195046140,-1486.91923368,0.00019178,2]
[327538588,1716195046149,-500.0,0.00019178,2]
[327538589,1716195046158,-500.0,0.00019178,2]
[327538590,1716195046168,-1486.91923368,0.00019178,2]
[327538591,1716195046177,-1486.91923368,0.00019178,2]
[327538592,1716195046186,-500.0,0.00019178,2]
[327538593,1716195046198,-457.86289219,0.00019178,2]
[327538594,1716195046211,-1486.91923368,0.00019178,2]
[327538595,1716195046221,-500.0,0.00019178,2]
[327538596,1716195046231,-279.76673831,0.00019178,2]
[327538597,1716195046241,-1486.91923368,0.00019178,2]
[327538598,1716195046250,-500.0,0.00019178,2]
[327538599,1716195046259,-700.846228,0.00019178,2]
[327538600,1716195046271,-415.11121662,0.00019178,2]
[327538745,1716196150186,-163.187949,0.00018162,2]
[327538772,1716196232183,-309.33493067,0.000189,2]
[327538795,1716196238200,-283.07656123,0.000189,2]
[327538797,1716196238210,-299.83413111,0.00018986,2]
[327538799,1716196238219,-789.22921496,0.00019078,2]
[327538801,1716196238229,-209.96086573,0.00019174,2]
[327538803,1716196238238,-9681.70735609,0.00019175,2]
[327538821,1716196240403,-6332.1853544,0.00019175,2]
[327538840,1716196243608,-710.90185917,0.00019175,2]
[327538841,1716196243622,-16.24232879,0.00019175,2]
[327538842,1716196243633,-155.16284251,0.00019176,2]
[327538843,1716196243642,-718.48788165,0.00019176,2]
[327538844,1716196243651,-234.02217573,0.00019176,2]
[327538846,1716196243660,-82.58477632,0.00019176,2]
[327538847,1716196243675,-610.0,0.00019176,2]
[327538852,1716196246352,-706.58761992,0.00019176,2]
[327538853,1716196246362,-172.90857714,0.00019176,2]
[327538854,1716196246371,-235.63950997,0.00019176,2]
[327538855,1716196246380,-187.21616057,0.00019176,2]
[327538856,1716196246389,-56.39634133,0.00019176,2]
[327538857,1716196246401,-206.38179767,0.00019176,2]
[327538858,1716196246410,-97.00224333,0.00019177,2]
[327538871,1716196708723,198.0,0.0002651,120]
[327538894,1716197153152,-163.187949,0.00018162,2]
[327538895,1716197153171,-123.46001775,0.000189,2]
[327538896,1716197248105,-271.48097685,0.000189,2]
[327538897,1716197248126,-469.45342164,0.00019057,2]
[327538898,1716197248146,-1004.1198629,0.00019078,2]
[327538899,1716197248166,-171.0,0.0001917,2]
[327538900,1716197248185,-155.02234896,0.00019176,2]
[327538901,1716197248206,-1636.74832833,0.00019177,2]
[327538902,1716197248225,-997.69628634,0.00019177,2]
[327538903,1716197248245,-264.74615518,0.00019177,2]
[327538904,1716197248266,-154.921787,0.00019177,2]
[327538905,1716197248285,-191.92483062,0.00019177,2]
[327538906,1716197248305,-370.96178906,0.00019178,2]
[327538907,1716197248327,-500.0,0.00019178,2]
[327538908,1716197248348,-1486.91923368,0.00019178,2]
[327538909,1716197248368,-500.0,0.00019178,2]
[327538910,1716197248389,-500.0,0.00019178,2]
[327538911,1716197248410,-500.0,0.00019178,2]
[327538912,1716197248430,-500.0,0.00019178,2]
[327538913,1716197248450,-500.0,0.00019178,2]
[327538914,1716197248473,-1486.91923368,0.00019178,2]
[327538915,1716197248493,-500.0,0.00019178,2]
[327538916,1716197248514,-500.0,0.00019178,2]
[327538917,1716197248632,-1486.91923368,0.00019178,2]
[327538918,1716197248654,-500.0,0.00019178,2]
[327538919,1716197248674,-500.0,0.00019178,2]
[327538920,1716197248695,-1486.91923368,0.00019178,2]
[327538921,1716197248717,-500.0,0.00019178,2]
[327538922,1716197248738,-500.0,0.00019178,2]
[327538923,1716197248759,-1486.91923368,0.00019178,2]
[327538924,1716197248781,-410.93828323,0.00019178,2]
[327538931,1716197432459,-263.2939964,0.000189,2]
[327538933,1716197432468,-667.35811274,0.00019078,2]
[327538935,1716197432480,-211.24676728,0.00019078,2]
[327538936,1716197432490,-131.52059472,0.00019178,3]
[327538974,1716197438635,-416.98047207,0.00019117,2]
[327538975,1716197438645,-203.84436892,0.00019178,3]
[327538990,1716197443602,-1406.01890669,0.00019177,2]
[327538991,1716197443615,-275.88025216,0.00019177,2]
[327538992,1716197443625,-238.72491025,0.00019177,2]
[327538993,1716197443635,-1401.61857641,0.00019177,2]
[327538994,1716197443644,-2926.11743207,0.00019178,3]
[327538995,1716197443653,-5532.49996305,0.00019178,3]
[327538996,1716197443663,-89.06171677,0.00019178,2]
[327538997,1716197443672,-500.0,0.00019178,2]
[327538998,1716197443681,-500.0,0.00019178,2]
[327538999,1716197443691,-1486.91923368,0.00019178,2]
[327539000,1716197443700,-500.0,0.00019178,2]
[327539001,1716197443710,-500.0,0.00019178,2]
[327539002,1716197443719,-1061.42332116,0.00019178,2]
[327539003,1716197443730,-425.49591252,0.00019178,2]
[327539004,1716197443739,-429.50408748,0.00019178,2]
[327539016,1716197446493,-1452.52149737,0.00019176,2]
[327539017,1716197446504,-214.77739029,0.00019176,2]
[327539018,1716197446513,-70.49591252,0.00019178,2]
[327539019,1716197446523,-1486.91923368,0.00019178,2]
[327539020,1716197446532,-297.36766917,0.00019178,2]
[327539021,1716197446543,-219.07478919,0.00019178,2]
[327539022,1716197446556,-334.965,0.00019178,2]
[327539024,1716197446882,1885.8334935,9.999e-05,2]
[327539032,1716197807799,487.76962202,9.999e-05,2]
[327539036,1716197827593,-13339.43950171,0.00027,15]
[327539037,1716197827619,-4069.69118517,0.00029,30]
[327539038,1716197827645,-323.0,0.00039267,14]
[327539039,1716197827772,-323.0,0.00039267,14]
[327539040,1716197827798,-2000.0,0.0004,20]
[327539041,1716197827821,-405.53847769,0.0004,120]
[327539042,1716197827845,-1969.3706019,0.0004,120]
[327539043,1716197827869,-1138.18926269,0.00040426,30]
[327539044,1716197827894,-323.0,0.00040838,14]
[327539045,1716197827918,-164.0,0.00041096,38]
[327539046,1716197827942,-1138.18926269,0.00041119,30]
[327539047,1716197827965,-323.0,0.00041137,90]
[327539048,1716197827990,-1138.18926269,0.00041455,30]
[327539049,1716197828015,-1138.18926269,0.0004148,30]
[327539050,1716197828040,-1138.18926269,0.00041687,30]
[327539051,1716197828062,-590.0,0.000417,30]
[327539052,1716197828085,-1138.18926269,0.00042167,30]
[327539053,1716197828112,-323.0,0.00042408,90]
[327539054,1716197828134,-5626.7482016,0.00043,30]
[327539055,1716197828157,-323.0,0.00043007,90]
[327539056,1716197828183,-1138.18926269,0.00043105,30]
[327539057,1716197828207,-1138.18926269,0.00043298,30]
[327539058,1716197828230,-172.0,0.0004332,55]
[327539059,1716197828253,-2661.53468667,0.0004368,120]
[327539060,1716197828276,-16161.3445298,0.000438,120]
[327539061,1716197828298,-150.5,0.00043805,35]
[327539062,1716197828320,-256.84,0.00043805,35]
[327539063,1716197828342,-999.0,0.00043805,15]
[327539064,1716197828365,-150.5,0.00043805,35]
[327539065,1716197828387,-300.0,0.00043805,35]
[327539066,1716197828409,-406.0,0.00043805,35]
[327539067,1716197828437,-150.5,0.00043815,35]
[327539068,1716197828460,-279.1,0.00043815,35]
[327539069,1716197828483,-150.5,0.00043815,35]
[327539070,1716197828506,-999.0,0.00043815,15]
[327539071,1716197828528,-150.5,0.00043815,35]
[327539072,1716197828552,-300.0,0.00043815,35]
[327539073,1716197828575,-406.0,0.00043815,35]
[327539074,1716197828599,-150.5,0.00043825,35]
[327539075,1716197828621,-150.5,0.00043825,35]
[327539076,1716197828643,-150.5,0.00043825,35]
[327539077,1716197828665,-999.0,0.00043825,15]
[327539078,1716197828687,-300.0,0.00043825,35]
[327539079,1716197828710,-150.5,0.00043825,35]
[327539080,1716197828734,-406.0,0.00043825,35]
[327539081,1716197828758,-500.0,0.00043835,30]
[327539082,1716197828781,-501.73127754,0.00043835,30]
[327539083,1716197828805,-500.0,0.00043835,30]
[327539084,1716197828827,-500.0,0.00043835,30]
[327539085,1716197828850,-545.11536768,0.00043835,30]
[327539086,1716197828873,-501.92126739,0.00043835,30]
[327539087,1716197828896,-504.78793953,0.00043835,30]
[327539088,1716197828919,-503.01939845,0.00043835,30]
[327539089,1716197828941,-156.01283754,0.00043835,30]
[327539090,1716197828964,-500.18622859,0.00043835,30]
[327539091,1716197828988,-500.0,0.00043835,30]
[327539092,1716197829013,-500.0,0.00043835,30]
[327539093,1716197829039,-500.0,0.00043835,30]
[327539094,1716197829067,-500.0,0.00043835,30]
[327539095,1716197829091,-500.0,0.00043835,30]
[327539096,1716197829115,-505.63235126,0.00043835,30]
[327539097,1716197829139,-500.0,0.00043835,30]
[327539098,1716197829165,-500.0,0.00043835,30]
[327539099,1716197829189,-500.0,0.00043835,30]
[327539100,1716197829216,-506.53999271,0.00043835,30]
[327539101,1716197829322,-501.22724457,0.00043835,30]
[327539102,1716197829345,-500.0,0.00043835,30]
[327539103,1716197829368,-524.87026631,0.00043835,30]
[327539104,1716197829392,-511.36953391,0.00043835,30]
[327539105,1716197829416,-517.1226926,0.00043835,30]
[327539106,1716197829441,-504.48078228,0.00043835,30]
[327539107,1716197829468,-500.0,0.00043835,30]
[327539108,1716197829493,-500.0,0.00043835,30]
[327539109,1716197829517,-507.63684907,0.00043835,30]
[327539110,1716197829541,-500.0,0.00043835,30]
[327539111,1716197829564,-500.0,0.00043835,30]
[327539112,1716197829587,-500.0,0.00043835,30]
[327539113,1716197829609,-500.0,0.00043835,30]
[327539114,1716197829633,-503.83765939,0.00043835,30]
[327539115,1716197829658,-500.0,0.00043835,30]
[327539116,1716197829682,-539.4248786,0.00043835,30]
[327539117,1716197829706,-500.0,0.00043835,30]
[327539118,1716197829729,-528.50433123,0.00043835,30]
[327539119,1716197829753,-500.0,0.00043835,30]
[327539120,1716197829777,-512.30615743,0.00043835,30]
[327539121,1716197829801,-500.0,0.00043835,30]
[327539122,1716197829824,-502.38403698,0.00043835,30]
[327539123,1716197829848,-504.7102875,0.00043835,30]
[327539124,1716197829874,-270.22035159,0.00043835,30]
[327539125,1716197829897,-559.01625253,0.00043835,30]
[327539126,1716197829920,-1063.94,0.00043835,30]
[327539127,1716197829947,-500.0,0.00043835,30]
[327539128,1716197829970,-502.04620115,0.00043835,30]
[327539129,1716197829994,-1306.3,0.00043835,30]
[327539130,1716197830016,-500.0,0.00043835,30]
[327539131,1716197830040,-506.81962392,0.00043835,30]
[327539132,1716197830063,-500.0,0.00043835,30]
[327539133,1716197830092,-1007.07290903,0.00043835,30]
[327539134,1716197830116,-500.0,0.00043835,30]
[327539135,1716197830140,-502.71696718,0.00043835,30]
[327539136,1716197830171,-441.20558062,0.00043835,30]
[327539137,1716197830205,-500.0,0.00043835,30]
[327539138,1716197830235,-520.69581358,0.00043835,30]
[327539139,1716197830268,-252.26936216,0.00043835,30]
[327539140,1716197830301,-502.30134496,0.00043835,30]
[327539141,1716197830335,-507.77054145,0.00043835,30]
[327539142,1716197830365,-500.0,0.00043835,30]
[327539143,1716197830396,-500.0,0.00043835,30]
[327539144,1716197830425,-504.79078174,0.00043835,30]
[327539145,1716197830456,-501.06085348,0.00043835,30]
[327539146,1716197830488,-506.41797228,0.00043835,30]
[327539147,1716197830521,-500.0,0.00043835,30]
[327539148,1716197830552,-500.0,0.00043835,30]
[327539149,1716197830579,-502.23323923,0.00043835,30]
[327539150,1716197830611,-500.0,0.00043835,30]
[327539151,1716197830642,-500.0,0.00043835,30]
[327539152,1716197830673,-516.09809456,0.00043835,30]
[327539153,1716197830704,-514.27644823,0.00043835,30]
[327539154,1716197830738,-500.0,0.00043835,30]
[327539155,1716197830767,-511.28202252,0.00043835,30]
[327539156,1716197830797,-502.54010178,0.00043835,30]
[327539157,1716197830825,-640.90668797,0.00043835,30]
[327539158,1716197830852,-500.0,0.00043835,30]
[327539159,1716197830880,-500.0,0.00043835,30]
[327539160,1716197830909,-510.36917095,0.00043835,30]
[327539161,1716197830940,-504.45315107,0.00043835,30]
[327539162,1716197830969,-509.90224602,0.00043835,30]
[327539163,1716197830999,-500.0,0.00043835,30]
[327539164,1716197831027,-500.0,0.00043835,30]
[327539165,1716197831056,-501.02329826,0.00043835,30]
[327539166,1716197831089,-502.50861249,0.00043835,30]
[327539167,1716197831117,-502.83683996,0.00043835,30]
[327539168,1716197831149,-500.0,0.00043835,30]
[327539169,1716197831177,-500.0,0.00043835,30]
[327539170,1716197831206,-500.0,0.00043835,30]
[327539171,1716197831348,-2979.56,0.00043835,30]
[327539172,1716197831370,-500.0,0.00043835,30]
[327539173,1716197831392,-501.07658133,0.00043835,30]
[327539174,1716197831414,-500.0,0.00043835,30]
[327539175,1716197831436,-502.84696255,0.00043835,30]
[327539176,1716197831458,-512.1892655,0.00043835,30]
[327539177,1716197831480,-500.0,0.00043835,30]
[327539178,1716197831503,-500.0,0.00043835,30]
[327539179,1716197831526,-508.3031944,0.00043835,30]
[327539180,1716197831548,-515.56898366,0.00043835,30]
[327539181,1716197831570,-500.0,0.00043835,30]
[327539182,1716197831593,-500.0,0.00043835,30]
[327539183,1716197831615,-500.0,0.00043835,30]
[327539184,1716197831637,-513.96702331,0.00043835,30]
[327539185,1716197831660,-186.99527049,0.00043835,30]
[327539186,1716197831682,-500.0,0.00043835,30]
[327539187,1716197831704,-505.63834202,0.00043835,30]
[327539188,1716197831727,-504.40935035,0.00043835,30]
[327539189,1716197831748,-500.0,0.00043835,30]
[327539190,1716197831771,-510.91,0.00043835,30]
[327539191,1716197831793,-500.0,0.00043835,30]
[327539192,1716197831816,-500.0,0.00043835,30]
[327539193,1716197831838,-503.84372088,0.00043835,30]
[327539194,1716197831860,-500.0,0.00043835,30]
[327539195,1716197831882,-2487.5,0.00043835,30]
[327539196,1716197831904,-500.0,0.00043835,30]
[327539197,1716197831926,-529.17,0.00043835,30]
[327539198,1716197831951,-505.71139028,0.00043835,30]
[327539199,1716197831973,-500.0,0.00043835,30]
[327539200,1716197831997,-306.44020715,0.00043835,30]